Cogmind - Beta 13 @@@ ROGUE MODE // 2024.06.24 @ 04:44:36 Player: Dewgzzz Result: Destroyed by H-61 Shepherd with Heavy Assault Cannon Performance ------------- Evolutions (2) 1000 Regions Visited (3) 600 Robots Destroyed (58) 290 Value Destroyed (1536) 1536 Prototype IDs (4) 80 Alien Tech Used (0) 0 Bonus (33) 33 TOTAL SCORE: 3539 Bonus ------- High Alert Combat Kills 33 Cogmind --------- Core Integrity 0/550 Matter 214/300 Energy 99/100 System Corruption 4% Temperature Cool (-100) Movement Core (350) Ox6 Location -8/Materials Parts ------- > --- POWER (1) -------- (None) > --- PROPULSION (3) --- (None) > --- UTILITY (4) ------ Cryofiber Web Large Storage Unit Machine Analyzer > --- WEAPON (3) ------- (None) > --- INVENTORY (15) --- Improved Ion Engine Medium Storage Unit Medium Storage Unit Mini Grenade Launcher Plasma Cutter Peak State ------------ > --- POWER ------------ Light Nuclear Core > --- PROPULSION ------- Light Treads Light Treads Light Treads > --- UTILITY ---------- Cryofiber Web Medium Storage Unit Machine Analyzer Light Armor Plating > --- WEAPON ----------- EM Pulse Cannon Particle Cannon Particle Cannon > --- INVENTORY -------- Improved Ion Engine Light Treads Heat Sink Light Armor Plating EM Pulse Gun Light Cannon Light Cannon Grenade Launcher Mini Grenade Launcher Plasma Cutter [Rating: 22] Favorites ----------- Power Improved Ion Engine Engine Improved Ion Engine Power Core Light Nuclear Core Propulsion Light Treads Treads Light Treads Wheel Wheel Utility Medium Storage Unit Device Heat Sink Storage Medium Storage Unit Processor Machine Analyzer Protection Light Armor Plating Weapon Light Cannon Energy Gun EM Pulse Gun Energy Cannon Particle Cannon Ballistic Gun Assault Rifle Ballistic Cannon Light Cannon Launcher Advanced EMP Blaster Special Weapon Plasma Cutter Build | -11 -10 -9 -8 ------- Run | Yrd Mat Mat Mat Slots Evolved 4 | . . 2 2 Power . | . . . . Propulsion 1 | . . 1 . Utility 2 | . . 1 1 Weapon 1 | . . . 1 Parts Attached 59 | 6 9 12 32 Power 6 | 1 . 3 2 Engine 5 | 1 . 3 1 Core 1 | . . . 1 Reactor . | . . . . Propulsion 11 | 2 1 5 3 Treads 9 | 2 1 3 3 Leg . | . . . . Wheel 2 | . . 2 . Hover . | . . . . Flight . | . . . . Utility 15 | 1 3 2 9 Device 7 | . 2 1 4 Storage 4 | 1 1 . 2 Processor 1 | . . . 1 Hackware . | . . . . Protection 3 | . . 1 2 Artifact . | . . . . Weapon 27 | 2 5 2 18 Energy Gun 2 | . 1 . 1 Energy Cannon 10 | . . 2 8 Ballistic Gun 2 | 2 . . . Ballistic Cannon 6 | . 4 . 2 Launcher 6 | . . . 6 Special Weapon 1 | . . . 1 Impact Weapon . | . . . . Slashing Weapon . | . . . . Piercing Weapon . | . . . . Special Melee Weapon . | . . . . Unidentified Prototypes 2 | . . 1 1 Parts Lost 20 | . . 4 16 Power 2 | . . 1 1 Propulsion 6 | . . 2 4 Utility 4 | . . 1 3 Weapon 8 | . . . 8 Highest Loss Streak 11 | . . 2 11 To Critical Strikes . | . . . . Average Slot Usage (%) 95 | . 97 89 96 Engine 10 | . 14 10 6 Treads 23 | . 27 16 25 Wheel 2 | . . 10 . Device 11 | . 12 11 10 Storage 11 | . 14 11 9 Processor 3 | . . . 8 Protection 4 | . . 5 6 Energy Cannon 11 | . . 10 20 Ballistic Cannon 11 | . 21 11 4 Naked Turns . | . . . . Heaviest Build 43 | 12 20 29 43 Greatest Support 60 | 40 40 40 60 Greatest Overweight (x) 11 | . . 2 11 Average Overweight (x) . | . . . . Largest Inventory Capacity 15 | 8 10 10 15 Average Capacity 9 | 7 8 10 10 Most Carried 10 | 6 8 10 10 Average Carried 8 | 3 7 9 9 Final Capacity 15 | 8 10 10 15 Final Carried 9 | 5 8 9 5 Class Distribution -------------------- 57% | Mutant 29% | Scavenger-Tank 9% | Scavenger-Skirmisher 3% | Scavenger-Mutant Dominant Class ---------------- Mutant | -10/Materials Mutant | -9/Materials Scavenger-Tank | -8/Materials Resources | -11 -10 -9 -8 ----------- Run | Yrd Mat Mat Mat Matter Collected 1194 | 278 204 314 398 Remotely . | . . . . Salvage Created 1558 | 80 203 502 773 Parts 97 | 4 16 25 52 Haulers Intercepted 5 | . 2 1 2 Recyclers Shooed 1 | . . . 1 Parts Field Recycled . | . . . . Retrieved Matter . | . . . . Parts Self-Destructed . | . . . . Prevented . | . . . . Kills | -11 -10 -9 -8 ------- Run | Yrd Mat Mat Mat Combat Hostiles Destroyed 39 | . 6 14 19 Cannons 27 | . 6 14 7 AOE 12 | . . . 12 Classes Destroyed 13 | 2 4 2 5 Worker 5 | . 1 . 4 Builder 2 | . . . 2 Tunneler 1 | 1 . . . Hauler 5 | . 2 1 2 Recycler 2 | 1 . . 1 Mechanic 1 | . . . 1 Operator 1 | . . . 1 Watcher 2 | . . . 2 Swarmer 10 | . 3 3 4 Grunt 17 | . 3 4 10 Duelist 1 | . . 1 . Sentry 9 | . . 6 3 Hunter 2 | . . . 2 Best Kill Streak 14 | 1 3 5 14 Combat Bots Only 8 | . 3 5 8 Max Kills in Single Turn 5 | 1 1 1 5 Gunslinging . | . . . . Exploded 2 | . . . 2 Melee . | . . . . Uniques/NPCs Destroyed . | . . . . Combat | -11 -10 -9 -8 -------- Run | Yrd Mat Mat Mat Hostile Shots Fired 204 | . 16 65 123 Missed 53 | . 4 16 33 Damage Taken 3029 | . 112 741 2176 Core 706 | . 53 99 554 Absorbed by Shields . | . . . . Core Remaining (%) 84 | 100 78 75 . Volleys Fired 110 | 3 20 37 50 Largest 3 | 2 2 2 3 Hottest 199 | 40 70 136 199 Shots Fired 216 | 6 40 74 96 Gun 7 | 6 . . 1 Cannon 184 | . 40 74 70 Launcher 20 | . . . 20 Special 5 | . . . 5 Kinetic 107 | 6 40 46 15 Thermal 67 | . . 28 39 Explosive 10 | . . . 10 Electromagnetic 32 | . . . 32 Robot Hit Streak 14 | 5 6 14 8 Robot Miss Streak 4 | . 4 1 2 Penetration Max . | . . . . Secondary Targets . | . . . . Shots Hit Robots 121 | 5 20 53 43 Core Hits 90 | 3 9 18 60 Critical Kills . | . . . . Critical Parts Destroyed . | . . . . Critical Strikes 4 | . . 4 . Blast 4 | . . 4 . Melee Attacks . | . . . . Impact . | . . . . Slashing . | . . . . Piercing . | . . . . Sneak Attacks . | . . . . Combat Hostiles . | . . . . Follow-up Attacks . | . . . . Damage Inflicted 4208 | 63 409 983 2753 Guns 75 | 63 . . 12 Cannons 2241 | . 380 983 878 Explosions 1827 | . . . 1827 Melee . | . . . . Ramming 65 | . 29 . 36 Kinetic 1183 | 63 380 591 149 Thermal 844 | . . 392 452 Explosive 1428 | . . . 1428 Electromagnetic 688 | . . . 688 Impact . | . . . . Slashing . | . . . . Piercing . | . . . . Highest Corruption 4 | . . . 4 Average Corruption 3 | . . . 3 Corruption Purged . | . . . . Corruption Blocked . | . . . . Effects 13 | . . . 13 Message Errors 2 | . . . 2 Matter Fused 5 | . . . 5 Heat Flow Errors 1 | . . . 1 Parts Rejected 1 | . . . 1 Data Loss (minor) 3 | . . . 3 Data Loss (major) 1 | . . . 1 Overload Shots . | . . . . Overflow Damage 60 | . 21 . 39 Projectiles 21 | . 21 . . Explosions 39 | . . . 39 Melee . | . . . . Knockbacks 9 | . 5 1 3 Impact . | . . . . Kinetic 8 | . 4 1 3 Secondary 1 | . 1 . . Self-Inflicted Damage 97 | . . . 97 Shots 5 | . . . 5 Rammed 7 | . 6 . 1 Targets Rammed 7 | . 6 . 1 Kicked . | . . . . Crushed . | . . . . Highest Temperature 313 | . 75 313 278 Average Temperature 84 | . 22 111 103 Received Heat Transfer 810 | . 36 225 549 Siege Activations . | . . . . Robots Corrupted . | . . . . Combat Hostiles . | . . . . Parts Fried 4 | . . . 4 Impact Corruptions . | . . . . Robots Melted . | . . . . Combat Hostiles . | . . . . Parts Melted 4 | . . 4 . Heat Transferred 1432 | . . 703 729 Parts Sabotaged . | . . . . Parts Stolen . | . . . . Parts Stripped . | . . . . Power Chain Reactions 2 | . . . 2 Alert | -11 -10 -9 -8 ------- Run | Yrd Mat Mat Mat Peak Influence 508 | 10 173 398 508 Initial 152 | . 6 42 152 Average 171 | 2 45 214 256 Maximum Alert Level 2 | . . 1 2 Low Security (%) 63 | 100 100 42 46 Level 1 28 | . . 57 33 Level 2 8 | . . . 20 Level 3 . | . . . . Level 4 . | . . . . Level 5 . | . . . . High Security . | . . . . Max Security . | . . . . Squads Dispatched 5 | . 1 1 3 Investigation . | . . . . Extermination . | . . . . Reinforcement 5 | . 1 1 3 Assault . | . . . . Garrison . | . . . . Intercept . | . . . . Searches Triggered . | . . . . Construction Impeded 2 | . . . 2 Haulers Reinforced . | . . . . Active Scanning Responses . | . . . . Cargo Convoy Interrupts . | . . . . Stealth | -11 -10 -9 -8 --------- Run | Yrd Mat Mat Mat Distress Signals 7 | . 2 2 3 Communications Jammed . | . . . . Distress Signals . | . . . . Times Spotted 72 | . 19 21 32 Peak Tracking Total 7 | . 7 5 7 Tactical Retreats 6 | . 2 3 1 Traps | -11 -10 -9 -8 ------- Run | Yrd Mat Mat Mat Traps Triggered 1 | . 1 . . Indirectly . | . . . . Trap Hack Attempts . | . . . . Triggered . | . . . . Disarmed . | . . . . Reprogrammed . | . . . . Reused . | . . . . Traps Extracted . | . . . . Installed . | . . . . Triggered . | . . . . Machines | -11 -10 -9 -8 ---------- Run | Yrd Mat Mat Mat Machines Disabled 4 | . 1 1 2 Max in Single Turn 1 | . 1 1 1 Machines Repaired . | . . . . Machines Dismantled . | . . . . Machines Sabotaged . | . . . . Overloaded Fab Kills . | . . . . Hacking | -11 -10 -9 -8 --------- Run | Yrd Mat Mat Mat Machines Accessed 12 | . 3 4 5 Terminals 9 | . 2 2 5 Fabricators . | . . . . Repair Stations . | . . . . Recycling Units 1 | . 1 . . Scanalyzers 2 | . . 2 . Garrison Access . | . . . . Total Hacks 25 | . 8 8 9 Successful 16 | . 4 7 5 Failed 9 | . 4 1 4 Catastrophic 2 | . 1 . 1 Database Lockouts . | . . . . Manual 10 | . 2 1 7 Terminals 17 | . 4 4 9 Fabricators . | . . . . Repair Stations . | . . . . Recycling Units 4 | . 4 . . Scanalyzers 4 | . . 4 . Garrison Access . | . . . . Terminal Hacks 4 | . 2 2 . Record 2 | . . 2 . Prototype ID Bank 1 | . 1 . . Locate Traps 1 | . 1 . . Fabricator Hacks . | . . . . Repair Station Hacks . | . . . . Recycling Unit Hacks 2 | . 2 . . Report Inventory 1 | . 1 . . Retrieve Components 1 | . 1 . . Scanalyzer 4 | . . 4 . Insert Component 2 | . . 2 . Analyze 2 | . . 2 . Garrison Access Hacks . | . . . . Unauthorized Hacks 5 | . . 1 4 Terminals 5 | . . 1 4 Botnet 5 | . . 1 4 Fabricators . | . . . . Repair Stations . | . . . . Recycling Units . | . . . . Scanalyzers . | . . . . Garrison Access . | . . . . Data Cores Recovered 1 | . . . 1 Used . | . . . . Hacking Detections 9 | . 2 4 3 Full Trace Events 1 | . . 1 . Feedback Events . | . . . . Feedback Blocked . | . . . . Robot Schematics Acquired . | . . . . Robots Built . | . . . . Authchips . | . . . . Time . | . . . . Total Robot Build Rating . | . . . . Part Schematics Acquired 2 | . . 2 . Parts Built . | . . . . Authchips . | . . . . Time . | . . . . Total Part Build Rating . | . . . . Parts Repaired . | . . . . Time . | . . . . Parts Recycled . | . . . . Recycled Matter . | . . . . Retrieved Matter . | . . . . Retrieved Components 3 | . 3 . . Parts Scanalyzed 2 | . . 2 . Part Schematics Acquired 2 | . . 2 . Parts Damaged . | . . . . Bothacking | -11 -10 -9 -8 ------------ Run | Yrd Mat Mat Mat Used RIF Installer . | . . . . Robots Hacked . | . . . . Non-combat . | . . . . Combat . | . . . . Robot Hacks Applied . | . . . . Relay Couplers Released . | . . . . Fabnet Peak Effective % . | . . . . Robots Rewired . | . . . . Allies Hacked . | . . . . Hacks Repelled . | . . . . Allies | -11 -10 -9 -8 -------- Run | Yrd Mat Mat Mat Total Allies . | . . . . Largest Group . | . . . . Highest-Rated Group . | . . . . Highest-Rated Ally . | . . . . Total Orders . | . . . . Ally Attacks . | . . . . Total Damage . | . . . . Kills . | . . . . Allies Corrupted . | . . . . Allies Melted . | . . . . Intel | -11 -10 -9 -8 ------- Run | Yrd Mat Mat Mat Robot Analysis Total . | . . . . Derelict Logs Recovered . | . . . . Drone Launches . | . . . . Drone Recoveries . | . . . . Exploration | -11 -10 -9 -8 ------------- Run | Yrd Mat Mat Mat Turns Passed 2666 | 144 766 684 1072 Spaces Moved 1356 | 77 386 379 514 Core 13 | 5 . . 8 Treads 1134 | 72 386 170 506 Legs . | . . . . Wheels 209 | . . 209 . Hover . | . . . . Flight . | . . . . Fastest Speed 50 | 50 160 95 160 Average Speed 151 | 152 160 124 164 Slowest Speed 600 | 160 160 160 600 Overloaded Moves . | . . . . Propulsion Burnouts . | . . . . Robots Hopped . | . . . . Cave-ins Triggered . | . . . . Exploration Rate (%) 26 | 6 39 27 33 Regions Visited 3 Branch Regions . Pre-discovered Areas . | . . . . Known Exits Taken . | . . . . Unknown Exits Taken 3 | 1 1 1 . Scrap Searched . | . . . . Spaces Dug . | . . . . Terrain Destroyed 64 | . . . 64 Melee . | . . . . Projectile . | . . . . AOE 64 | . . . 64 Terrain Rammed 3 | . . . 3 Walls Destroyed 1 | . . . 1 Machines Disabled . | . . . . Actions | -11 -10 -9 -8 --------- Run | Yrd Mat Mat Mat Total 1756 | 95 489 517 655 Wait 173 | 3 59 76 35 Move 1353 | 76 385 378 514 Hop . | . . . . Pick Up 28 | 6 5 8 9 Fast Attach 23 | 6 6 6 5 Attach 16 | . . 5 11 Detach 1 | . . . 1 Swap 20 | . 3 1 16 Drop 22 | 1 5 6 10 Fire 110 | 3 20 37 50 Melee . | . . . . Ram 3 | . . . 3 Kick . | . . . . Crush 7 | . 6 . 1 Escape Stasis . | . . . . Rewire . | . . . . Trap . | . . . . Miscellaneous . | . . . . Route ------- -11/Scrapyard -10/Materials -9/Materials -8/Materials History --------- Turn | Location | Event 10 | -11/Scrapyard | Discovered new exit (range 15) 145 | -11/Scrapyard | Entered Materials 312 | -10/Materials | Build established: Mutant 884 | -10/Materials | Discovered new exit (range 9) 911 | -10/Materials | Entered another Materials area 911 | -9/Materials | Evolved 2 slots: Propulsion x1, Utility x1 1587 | -9/Materials | Discovered new exit (range 4) 1595 | -9/Materials | Entered another Materials area 1595 | -8/Materials | Evolved 2 slots: Utility x1, Weapon x1 1902 | -8/Materials | Build established: Scavenger-Tank 2453 | -8/Materials | Destroyed 8 combat bots 2461 | -8/Materials | Lost 3 parts (1n1u1w) 2630 | -8/Materials | Core integrity fell below 50% 2663 | -8/Materials | Core integrity fell below 20% 2667 | -8/Materials | Destroyed by H-61 Shepherd with Heavy Assault Cannon Last Messages --------------- 02639_ EM Pulse Gun destroyed. 02639_ Knocked back. 02639_ U-05 Engineer lays Concrete. 02642_ U-05 Engineer builds a Wall. 02642_ U-05 Engineer lays Concrete. 02646_ U-05 Engineer builds a Wall. 02647_ U-05 Engineer lays Concrete. 02647_ Particle Cannon destroyed. 02647_ Grenade Launcher destroyed. 02647_ Cld. Ion Engine destroyed. 02647_ Knocked back. 02648_ U-05 Engineer lays Concrete. 02651_ U-05 Engineer builds a Wall. 02652_ U-05 Engineer lays Concrete. 02657_ U-05 Engineer builds a Wall. 02657_ U-05 Engineer lays Concrete. 02662_ H-61 Shepherd IFF system glitched. 02662_ Slug penetrates G-47 Trooper. 02662_ U-05 Engineer lays Concrete. 02667_ Penetrated by Slug. Map ----- +----------------------------------------------------+ | ?????????????????????????????????????????????????? | | ?????????????????????????????????????????????????? | | ?????????????????????????????????????????????????? | | ?????????????????????????????????????????????????? | | ?????????????????????????????????????????????????? | | ?????????????????????????????????????????????????? | | ?????????????????????????????????????????????????? | | ?????????????????????????????????????????????????? | | ?????????????????????????????????????????????????? | | ?????????????????????????????????????????????????? | | ???????????????????????? ??????????????????????? | | ???????????????????????? ??????????????????????? | | ???????????????????????? ??????????????????????? | | ??????????????????????## ##????????????????????? | | ??????????????????????# #????????????????????? | | ??????????????????????? ?????????????????????? | | ??????"""?????????????? ?????????????????????? | | ???????Y"?????????????? ?????????????????????? | | ??????"""?????????????? u ?????????????????????? | | ???????????????????????# u#?#####???????????????? | | ???????????????????????# a # ????????????????? | | ???????????????????????# # """???????????????? | | ???????????????????????#g /k ?"""???????????????? | | ???????????????????????# Hg; ??"""?????######????? | | ???????????????????????# #??? ????##!! ##???? | | ???????????????????????# @t#???#+#????#! !#???? | | ???????????????????????# #???# #????# #???? | | ???????????????????????# %#???# #????## #?""" | | ???????????????????????# #???# #?????# ! ! #?""" | | ???????????????????????# ##### ####### #?""" | | ???????????????????????#% % T +???? | | ???????????????????????# % ###### #?""" | | ???????????????????????#%= #????# #?""" | | ???????????????????????#########+######### ###?""" | | ???????????????????????###% !#?# #?????? | | ???????????????????????# # #?# #?????? | | ???????????????????????## ![[ #?# #????+# | | ???????????????????????## ![[ #?# #???? # | | ???????????????????????# # [[ ## #???# # | | ???????????????????????# # = ### #???# | | ????????????????????????################?# ##??# # | | ????????????????????????## % #?##??# #??# # | | ???????????????????????### ### ####[##### # | | ???????????????????????# ######## #####!# | | ???????????????????????# #[ #!![ [![= = % | | ???????????????????????# +=% [ [ | | ???????????????????????# #= # [[%= | | ???????????????????????# ####/######+### | | ???????????????????????# # [ =#=! ! # | | ???????????????????????## ##! =# " " # | +----------------------------------------------------+ Best States ------------- Heat Dissipation 41 Energy Generation 14 Energy Capacity 280 Matter Stores 300 Matter Capacity 300 Sight Range 16 Terrain Scan Density 10 ECM Strength 1 Base Temperature (-) 100 Armor Coverage 300 Evasion (%) 41 Recoil Reduction 3 Item Schematics ----------------- Grenade Launcher | -9/Materials | Scanalyzed Particle Cannon | -9/Materials | Scanalyzed Robot Schematics ------------------ None Fabricated ------------ Nothing Alien Tech Used ----------------- None Achievements -------------- None Challenges ------------ None Game ------ Seed DisruptionInsulatedComputer Manual? 0 Play Time 00:40:02 Cumulative 6.9 hours Start 2024.06.24 @ 04:05:35 End 2024.06.24 @ 04:44:36 Sessions 1 Manual Loads 0 Difficulty Rogue Special Mode None Game No. 7 Rogue 7 Adventurer 0 Explorer 0 Win Type - Total 0 Types 0/0/0/0/0/0/0/0/0 Lore% 10 Gallery% 12 Achievement% 12 Wizard Run 0 Options --------- Layout 1 ASCII 0 Keyboard 0 Movement Vi Keybinds 0 Fullscreen 1 Font 16/SmallcapsGlow Map View 55x38 Zoom Use 0% Tactical HUD 1 Map Filters NONE Filters NONE Steam 1 RUN: 45290e7e-eeba-4d3b-9342-785167eae9e7